fUSD/lending_fUSD_20260115
["ID","MTS","AMOUNT","RATE_DAILY","PERIOD"]
[401986150,1768438241349,-500.0,0.00018093,4]
[401986152,1768438241359,-500.0,0.00018093,4]
[401986154,1768438241368,-150.0,0.00018093,4]
[401986156,1768438241377,-500.0,0.00018093,4]
[401986158,1768438241386,-500.0,0.00018093,4]
[401986160,1768438241395,-150.0,0.00018093,4]
[401986162,1768438241404,-150.0,0.00018093,4]
[401986164,1768438241413,-500.0,0.00018093,4]
[401986166,1768438241422,-150.0,0.00018093,4]
[401986168,1768438241431,-150.0,0.00018093,4]
[401986170,1768438241441,-295.72412489,0.00018093,4]
[401986172,1768438241450,-150.0,0.00018093,4]
[401986174,1768438241459,-229.92025666,0.00018093,4]
[401986176,1768438241468,-150.0,0.00018093,4]
[401986178,1768438241477,-150.0,0.00018093,4]
[401986180,1768438241487,-500.0,0.00018093,4]
[401986182,1768438241496,-150.0,0.00018093,4]
[401986184,1768438241505,-150.0,0.00018093,4]
[401986186,1768438241514,-150.0,0.00018093,4]
[401986188,1768438241524,-150.0,0.00018093,4]
[401986190,1768438241533,-150.0,0.00018093,4]
[401986192,1768438241542,-150.0,0.00018093,4]
[401986194,1768438241551,-150.0,0.00018093,4]
[401986196,1768438241560,-150.0,0.00018093,4]
[401986198,1768438241569,-150.0,0.00018093,4]
[401986200,1768438241578,-150.0,0.00018093,4]
[401986202,1768438241587,-150.97440131,0.00018093,4]
[401986204,1768438241595,-500.0,0.00018148,4]
[401986206,1768438241604,-500.0,0.00018148,4]
[401986208,1768438241614,-150.0,0.00018148,4]
[401986209,1768438241623,-500.0,0.00018148,4]
[401986211,1768438241633,-500.0,0.00018148,4]
[401986214,1768438241642,-150.0,0.00018148,4]
[401986215,1768438241651,-150.0,0.00018148,4]
[401986218,1768438241661,-500.0,0.00018148,4]
[401986220,1768438241670,-150.0,0.00018148,4]
[401986222,1768438241679,-150.0,0.00018148,4]
[401986224,1768438241688,-150.0,0.00018148,4]
[401986226,1768438241697,-234.30865662,0.00018148,4]
[401986228,1768438241706,-500.0,0.00018148,4]
[401986230,1768438241716,-231.23799714,0.00018148,4]
[401986231,1768438241725,-159.6010049,0.00018148,4]
[401986233,1768438241735,-150.0,0.00018148,4]
[401986235,1768438241744,-150.0,0.00018148,4]
[401986237,1768438241753,-150.0,0.00018148,4]
[401986239,1768438241762,-150.0,0.00018148,4]
[401986241,1768438241771,-171.05172936,0.00018148,4]
[401986243,1768438241780,-151.0,0.00018199,2]
[401986245,1768438241789,-500.0,0.00018203,4]
[401986247,1768438241799,-530.66926965,0.00018203,4]
[401986249,1768438241808,-500.0,0.00018203,4]
[401986251,1768438241818,-500.0,0.00018203,4]
[401986253,1768438241827,-157.31867032,0.00018203,4]
[401986256,1768438241836,-150.0,0.00018203,4]
[401986258,1768438241846,-500.0,0.00018203,4]
[401986259,1768438241856,-150.0,0.00018203,4]
[401986261,1768438241865,-150.0,0.00018203,4]
[401986263,1768438241874,-150.0,0.00018203,4]
[401986265,1768438241883,-500.0,0.00018203,4]
[401986267,1768438241892,-150.0,0.00018203,4]
[401986269,1768438241900,-150.0,0.00018203,4]
[401986271,1768438241910,-150.0,0.00018203,4]
[401986273,1768438241919,-150.0,0.00018203,4]
[401986275,1768438241928,-1680.0,0.00018217,2]
[401986277,1768438241937,-500.0,0.00018257,4]
[401986279,1768438241947,-150.0,0.00018257,4]
[401986281,1768438241956,-500.0,0.00018257,4]
[401986283,1768438241966,-200.0,0.00018257,4]
[401986285,1768438241976,-150.0,0.00018257,4]
[401986287,1768438241986,-185.36700145,0.00018257,4]
[401986289,1768438241996,-150.0,0.00018257,4]
[401986291,1768438242005,-154.47382576,0.00018257,4]
[401986293,1768438242019,-500.0,0.00018312,4]
[401986295,1768438242030,-500.0,0.00018312,4]
[401986297,1768438242039,-157.03274317,0.00018312,4]
[401986299,1768438242048,-164.1,0.00018314,2]
[401986301,1768438242058,-500.0,0.00018367,4]
[401986303,1768438242067,-500.0,0.00018422,4]
[401986305,1768438242077,-500.0,0.00018434,2]
[401986307,1768438242087,-500.0,0.00018477,4]
[401986309,1768438242097,-500.0,0.00018531,4]
[401986311,1768438242107,-500.0,0.00018586,4]
[401986313,1768438242116,-500.0,0.00018641,4]
[401986315,1768438242127,-500.0,0.00018696,4]
[401986317,1768438242136,-500.0,0.00018751,4]
[401986319,1768438242145,-151.25,0.000188,2]
[401986321,1768438242154,-362.57342661,0.00018805,4]
[401986323,1768438242164,-509.39,0.00018925,2]
[401986324,1768438242173,-102506.79986091,0.00019,2]
[401986326,1768438242182,-200.0,0.00019082,2]
[401986328,1768438242191,-1000.0,0.00019259,2]
[401986330,1768438242202,-10855.94199975,0.00019589,2]
[401986333,1768438242212,-16435.29066165,0.00019599,2]
[401986334,1768438242221,-509.39,0.00019785,2]
[401986337,1768438242231,-200.0,0.00019955,2]
[401986338,1768438242240,-2043.0,0.00020005,2]
[401986340,1768438242250,-1816.2,0.00020055,2]
[401986343,1768438242260,-509.39,0.00020646,2]
[401986345,1768438242269,-233.68,0.00020919,2]
[401986347,1768438242278,-16531.88,0.00020951,2]
[401986349,1768438242288,-779.05108769,0.00021206,2]
[401986351,1768438242298,-1000.0,0.00021399,2]
[401986352,1768438242307,-1816.2,0.0002234,2]
[401986354,1768438242316,-10855.94199975,0.0002249,2]
[401986356,1768438242325,-16435.29066165,0.00022498,2]
[401986358,1768438242335,-29048.0754132,0.00022721,2]
[401986360,1768438242344,-17991.7553584,0.00022721,2]
[401986362,1768438242354,-1000.0,0.00023539,2]
[401986364,1768438242364,-35706.61374504,0.00023829,2]
[401986366,1768438242374,-1816.2,0.00024625,2]
[401986369,1768438242385,-2563.74337966,0.0002466,2]
[401986371,1768438242394,-226.693918,0.00024797,7]
[401986373,1768438242404,-500.0,0.00024799,2]
[401986375,1768438242413,-291.19292406,0.00024799,2]
[401986377,1768438242423,-150.0,0.00024799,2]
[401986379,1768438242432,-506009.064201,0.000248,3]
[401986381,1768438242444,-2206.35011691,0.000248,2]
[401986383,1768438242454,-561.16,0.00024899,2]
[401986385,1768438242463,-200.0,0.000249,2]
[401986387,1768438242474,-151.0,0.000249,2]
[401986389,1768438242484,-151.0,0.000249,2]
[401986392,1768438242495,-151.0,0.000249,7]
[401986394,1768438242505,-151.0,0.000249,2]
[401986396,1768438242514,-1263.0,0.000249,2]
[401986398,1768438242523,-151.0,0.000249,2]
[401986399,1768438242533,-151.0,0.000249,2]
[401986401,1768438242543,-1263.0,0.000249,2]
[401986403,1768438242552,-151.0,0.000249,2]
[401986405,1768438242561,-1263.0,0.000249,2]
[401986409,1768438242571,-151.0,0.000249,2]
[401986412,1768438242581,-509.1450619,0.000249,2]
[401986420,1768438242591,-158.15753855,0.000249,2]
[401986423,1768438242793,-151.0,0.000249,7]
[401986425,1768438242802,-151.0,0.000249,7]
[401986427,1768438242811,-151.0,0.000249,7]
[401986429,1768438242820,-4600.0,0.000249,9]
[401986431,1768438242829,-24165.15871198,0.000249,3]
[401986574,1768438244209,-4037.5456,0.000249,3]
[401986584,1768438244293,-1734.89707331,0.000249,3]
[401986704,1768438245567,-415.561988,0.000249,3]
[401986705,1768438245579,-1016.0,0.000249,3]
[401986709,1768438378555,336.0,0.0001485,2]
[401986711,1768438379274,336.0,0.000153,2]
[401986712,1768438419524,163.0,0.000301,120]
[401986721,1768438523881,6814.87138406,0.0003,120]
[401986724,1768438686048,530.95,0.00019178,30]
[401986789,1768439116088,166.66,0.0001477,2]
[401986790,1768439116191,166.66,0.00015081,2]
[401986791,1768439116409,166.66,0.00015392,2]
[401986856,1768439352095,-200.0,0.00015509,2]
[401986857,1768439352124,-150.0,0.00015589,2]
[401986858,1768439352147,-166.66,0.00015703,2]
[401986859,1768439352167,-4742.92077169,0.00015945,2]
[401986860,1768439352186,-195.0,0.00015945,2]
[401986861,1768439352209,-166.66,0.00016013,2]
[401986862,1768439352231,-550.0,0.00016289,2]
[401986863,1768439352250,-150.0,0.00016289,2]
[401986864,1768439352275,-12365.18146159,0.0001629,2]
[401986865,1768439367076,-2483.46,0.0001566,2]
[401986866,1768439371094,-151.0,0.00016169,2]
[401986867,1768439371113,-151.0,0.00016169,2]
[401986868,1768439371133,-196.00514886,0.00016199,2]
[401986869,1768439371158,-41110.43372127,0.0001629,2]
[401986874,1768439431833,-500.0,0.00016142,2]
[401986875,1768439431842,-200.0,0.00016142,2]
[401986876,1768439431853,-150.0,0.00016142,2]
[401986877,1768439431862,-500.0,0.00016142,2]
[401986878,1768439431873,-500.0,0.00016142,2]
[401986879,1768439431883,-150.0,0.00016142,2]
[401986880,1768439431893,-150.0,0.00016142,2]
[401986881,1768439431903,-150.0,0.00016142,2]
[401986882,1768439431913,-500.0,0.00016142,2]
[401986883,1768439431923,-500.0,0.00016142,2]
[401986884,1768439431933,-151.0,0.00016165,2]
[401986886,1768439431942,-151.0,0.00016165,2]
[401986888,1768439431951,-151.0,0.00016165,2]
[401986890,1768439431960,-151.0,0.00016168,2]
[401986892,1768439431969,-500.0,0.00016197,2]
[401986894,1768439431978,-150.0,0.00016197,2]
[401986896,1768439431988,-500.0,0.00016197,2]
[401986898,1768439431997,-200.0,0.00016197,2]
[401986900,1768439432007,-400.0,0.00016197,2]
[401986902,1768439432016,-500.0,0.00016197,2]
[401986904,1768439432025,-500.0,0.00016197,2]
[401986906,1768439432034,-500.0,0.00016252,2]
[401986907,1768439432043,-298.0178051,0.00016252,2]
[401986909,1768439432052,-500.0,0.00016252,2]
[401986911,1768439432062,-648.69425671,0.00016252,2]
[401986913,1768439432071,-500.0,0.00016252,2]
[401986915,1768439432080,-1200.0,0.00016289,2]
[401986917,1768439432089,-300.0,0.00016289,2]
[401986920,1768439432098,-300.0,0.00016289,2]
[401986923,1768439432107,-311340.70143724,0.0001629,2]
[401986926,1768439432128,-208579.31065431,0.0001629,2]
[401986929,1768439432139,-1254.41808677,0.0001629,2]
[401986933,1768439432167,-425349.95463882,0.0001629,2]
[401986935,1768439432176,-500.0,0.00016306,2]
[401986937,1768439432185,-500.0,0.00016306,2]
[401986939,1768439432194,-150.0,0.00016306,2]
[401986940,1768439432203,-500.0,0.00016306,2]
[401986942,1768439432212,-500.0,0.00016306,2]
[401986943,1768439432221,-500.0,0.00016306,2]
[401986944,1768439432231,-150.0,0.00016306,2]
[401986945,1768439432240,-150.0,0.00016306,2]
[401986946,1768439432249,-150.0,0.00016306,2]
[401986947,1768439432259,-295.72412489,0.00016306,2]
[401986948,1768439432270,-842.93,0.00016306,2]
[401986949,1768439432280,-150.0,0.00016306,2]
[401986950,1768439432289,-150.0,0.00016306,2]
[401986951,1768439432299,-447.0,0.00016306,2]
[401986952,1768439432308,-500.0,0.00016306,2]
[401986953,1768439432319,-500.0,0.00016306,2]
[401986954,1768439432328,-578.52589726,0.00016306,2]
[401986955,1768439432337,-516.31193931,0.00016306,2]
[401986956,1768439432347,-166.66,0.00016324,2]
[401986957,1768439432356,-500.0,0.00016361,2]
[401986958,1768439432366,-500.0,0.00016361,2]
[401986959,1768439432378,-150.0,0.00016361,2]
[401986960,1768439432387,-500.0,0.00016361,2]
[401986961,1768439432397,-500.0,0.00016361,2]
[401986962,1768439432406,-500.0,0.00016361,2]
[401986963,1768439432417,-150.0,0.00016361,2]
[401986964,1768439432426,-150.0,0.00016361,2]
[401986965,1768439432436,-150.0,0.00016361,2]
[401986966,1768439432446,-150.0,0.00016361,2]
[401986967,1768439432456,-150.0,0.00016361,2]
[401986968,1768439432466,-447.0,0.00016361,2]
[401986969,1768439432476,-500.0,0.00016361,2]
[401986970,1768439432485,-500.0,0.00016361,2]
[401986971,1768439432495,-1000.0,0.00016389,2]
[401986972,1768439432504,-25478.26317984,0.00016393,2]
[401986973,1768439432514,-4453.21234344,0.000164,2]
[401986974,1768439432523,-500.0,0.00016416,2]
[401986975,1768439432532,-530.66926965,0.00016416,2]
[401986976,1768439432541,-500.0,0.00016416,2]
[401986977,1768439432551,-500.0,0.00016416,2]
[401986978,1768439432561,-500.0,0.00016416,2]
[401986979,1768439432840,-157.31867032,0.00016416,2]
[401986980,1768439432850,-150.0,0.00016416,2]
[401986981,1768439432859,-150.0,0.00016416,2]
[401986982,1768439432869,-150.0,0.00016416,2]
[401986983,1768439432879,-447.0,0.00016416,2]
[401986984,1768439432889,-174.78328857,0.00016416,2]
[401986985,1768439432899,-150.0,0.00016416,2]
[401986986,1768439432909,-500.0,0.00016416,2]
[401986987,1768439432919,-150.0,0.00016438,2]
[401986988,1768439432928,-603.12603829,0.00016438,2]
[401986989,1768439432937,-165.07,0.0001644,2]
[401986990,1768439432947,-170.431,0.00016445,2]
[401986991,1768439432957,-1884.112,0.00016445,2]
[401986992,1768439432966,-13626.148734,0.00016449,2]
[401986993,1768439432975,-500.0,0.0001647,2]
[401986994,1768439432984,-150.0,0.0001647,2]
[401986995,1768439432994,-500.0,0.0001647,2]
[401986996,1768439433003,-150.0,0.0001647,2]
[401986997,1768439433014,-447.0,0.0001647,2]
[401986998,1768439433023,-202.08698658,0.0001647,2]
[401986999,1768439433033,-500.0,0.0001647,2]
[401987000,1768439433044,-162.380719,0.0001648,2]
[401987001,1768439433053,-2500.0,0.00016489,2]
[401987002,1768439433064,-32041.7352,0.0001649,2]
[401987003,1768439433073,-150.0,0.00016493,2]
[401987004,1768439433083,-1075.44369599,0.000165,2]
[401987005,1768439433092,-1095.11627938,0.00016502,2]
[401987006,1768439433102,-18680.57133339,0.00016502,2]
[401987007,1768439433111,-500.0,0.00016525,2]
[401987008,1768439433120,-500.0,0.00016525,2]
[401987009,1768439433129,-250.0,0.00016525,2]
[401987010,1768439433138,-447.0,0.00016525,2]
[401987011,1768439433147,-500.0,0.00016525,2]
[401987012,1768439433156,-150.0,0.00016548,2]
[401987013,1768439433165,-173.16980104,0.00016573,2]
[401987014,1768439433174,-500.39407224,0.00016573,2]
[401987015,1768439433183,-500.0,0.00016573,2]
[401987016,1768439433192,-500.0,0.00016573,2]
[401987017,1768439433202,-500.0,0.00016573,2]
[401987018,1768439433211,-500.0,0.00016573,2]
[401987019,1768439433220,-166.05980201,0.00016573,2]
[401987020,1768439433229,-500.0,0.00016573,2]
[401987021,1768439433238,-500.0,0.00016573,2]
[401987022,1768439433247,-500.0,0.00016573,2]
[401987023,1768439433256,-500.0,0.00016573,2]
[401987024,1768439433264,-177.26291985,0.00016573,2]
[401987025,1768439433273,-500.0,0.00016573,2]
[401987026,1768439433282,-501.12934811,0.00016573,2]
[401987027,1768439433290,-500.0,0.00016573,2]
[401987028,1768439433302,-500.0,0.00016573,2]
[401987029,1768439433313,-500.0,0.00016573,2]
[401987030,1768439433322,-500.0,0.00016573,2]
[401987031,1768439433331,-500.0,0.00016573,2]
[401987032,1768439433340,-500.0,0.00016573,2]
[401987033,1768439433349,-500.0,0.00016573,2]
[401987034,1768439433358,-165.98021952,0.00016573,2]
[401987035,1768439433367,-163.65819203,0.00016573,2]
[401987036,1768439433379,-633.20600999,0.00016573,2]
[401987037,1768439433388,-500.0,0.00016573,2]
[401987038,1768439433397,-500.0,0.00016573,2]
[401987039,1768439433407,-500.0,0.00016573,2]
[401987040,1768439433417,-151.29755926,0.00016573,2]
[401987041,1768439433427,-500.0,0.00016573,2]
[401987042,1768439433436,-500.0,0.00016573,2]
[401987043,1768439433446,-500.0,0.00016573,2]
[401987044,1768439433455,-500.0,0.00016573,2]
[401987045,1768439433464,-500.0,0.00016573,2]
[401987046,1768439433473,-500.0,0.00016573,2]
[401987047,1768439433482,-500.0,0.00016573,2]
[401987048,1768439433490,-500.0,0.0001658,2]
[401987049,1768439433499,-250.0,0.0001658,2]
[401987050,1768439433509,-447.0,0.0001658,2]
[401987051,1768439433518,-842.93,0.0001658,2]
[401987052,1768439433527,-209.63270184,0.0001658,2]
[401987053,1768439433535,-200.0,0.0001658,2]
[401987054,1768439433545,-500.0,0.0001658,2]
[401987055,1768439433555,-151.0,0.0001658,2]
[401987056,1768439433565,-151.0,0.0001658,2]
[401987057,1768439433574,-151.0,0.0001658,2]
[401987058,1768439433584,-151.0,0.0001658,2]
[401987059,1768439433592,-151.0,0.0001658,2]
[401987060,1768439433601,-500.0,0.0001658,2]
[401987061,1768439433611,-151.0,0.0001658,2]
[401987062,1768439433620,-500.0,0.0001658,2]
[401987063,1768439433629,-500.0,0.0001658,2]
[401987064,1768439433638,-500.0,0.0001658,2]
[401987065,1768439433647,-500.0,0.0001658,2]
[401987066,1768439433660,-500.0,0.0001658,2]
[401987067,1768439433670,-500.0,0.0001658,2]
[401987068,1768439433680,-500.0,0.0001658,2]
[401987069,1768439433689,-500.0,0.0001658,2]
[401987070,1768439433699,-500.0,0.0001658,2]
[401987071,1768439433710,-500.0,0.0001658,2]
[401987072,1768439433719,-500.0,0.0001658,2]
[401987073,1768439433729,-500.0,0.0001658,2]
[401987074,1768439433738,-500.0,0.0001658,2]
[401987075,1768439433747,-151.0,0.0001658,2]
[401987076,1768439433756,-500.0,0.0001658,2]
[401987077,1768439433766,-151.0,0.0001658,2]
[401987078,1768439433775,-500.0,0.0001658,2]
[401987079,1768439433785,-151.0,0.0001658,2]
[401987080,1768439433795,-500.0,0.0001658,2]
[401987081,1768439433804,-151.0,0.0001658,2]
[401987082,1768439433815,-500.0,0.0001658,2]
[401987083,1768439433824,-151.0,0.0001658,2]
[401987084,1768439433834,-500.0,0.0001658,2]
[401987085,1768439433843,-151.0,0.0001658,2]
[401987086,1768439433856,-500.0,0.0001658,2]
[401987087,1768439433865,-151.0,0.0001658,2]
[401987088,1768439433875,-500.0,0.0001658,2]
[401987089,1768439433884,-151.0,0.0001658,2]
[401987090,1768439433894,-500.0,0.0001658,2]
[401987091,1768439433903,-151.0,0.0001658,2]
[401987092,1768439433912,-151.0,0.0001658,2]
[401987093,1768439433922,-151.0,0.0001658,2]
[401987094,1768439433931,-200.0,0.0001658,2]
[401987095,1768439433941,-500.0,0.00016589,2]
[401987096,1768439433952,-622.57091342,0.00016589,2]
[401987097,1768439433962,-500.0,0.00016589,2]
[401987098,1768439433971,-500.0,0.00016589,2]
[401987099,1768439433980,-500.0,0.00016589,2]
[401987100,1768439433990,-500.0,0.00016589,2]
[401987101,1768439434000,-500.0,0.00016589,2]
[401987102,1768439434009,-500.0,0.00016589,2]
[401987103,1768439434019,-500.0,0.00016589,2]
[401987104,1768439434029,-500.0,0.00016589,2]
[401987105,1768439434038,-500.0,0.00016589,2]
[401987106,1768439434047,-500.0,0.00016589,2]
[401987107,1768439434060,-500.0,0.00016589,2]
[401987108,1768439434070,-500.0,0.00016589,2]
[401987109,1768439434080,-500.0,0.00016589,2]
[401987110,1768439434090,-500.0,0.00016589,2]
[401987111,1768439434100,-500.0,0.00016589,2]
[401987112,1768439434109,-500.0,0.00016589,2]
[401987113,1768439434119,-500.0,0.00016589,2]
[401987114,1768439434128,-500.0,0.00016589,2]
[401987115,1768439434138,-500.0,0.00016589,2]
[401987116,1768439434147,-500.0,0.00016589,2]
[401987117,1768439434157,-504.91562977,0.00016589,2]
[401987118,1768439434167,-500.0,0.00016589,2]
[401987119,1768439434176,-500.0,0.00016589,2]
[401987120,1768439434187,-488.1678988,0.00016589,2]
[401987121,1768439434197,-500.0,0.00016589,2]
[401987122,1768439434208,-500.0,0.00016589,2]
[401987123,1768439434218,-500.0,0.00016589,2]
[401987124,1768439434227,-500.0,0.00016589,2]
[401987125,1768439434238,-500.0,0.00016589,2]
[401987126,1768439434251,-500.0,0.00016589,2]
[401987127,1768439434262,-500.0,0.00016589,2]
[401987128,1768439434272,-500.0,0.00016589,2]
[401987129,1768439434282,-500.0,0.00016589,2]
[401987130,1768439434292,-200.0,0.00016589,2]
[401987131,1768439434302,-500.0,0.00016589,2]
[401987132,1768439434314,-500.0,0.00016589,2]
[401987133,1768439434323,-398.18466805,0.00016589,2]
[401987134,1768439434333,-400.5200004,0.00016589,2]
[401987135,1768439434342,-500.0,0.00016589,2]
[401987136,1768439434353,-500.0,0.00016589,2]
[401987137,1768439434363,-150.0,0.00016602,2]
[401987138,1768439434374,-500.0,0.00016635,2]
[401987139,1768439434385,-447.0,0.00016635,2]
[401987140,1768439434395,-339.21,0.00016654,2]
[401987141,1768439434405,-150.0,0.00016657,2]
[401987142,1768439434416,-500.0,0.0001669,2]
[401987143,1768439434426,-447.0,0.0001669,2]
[401987144,1768439434437,-902.5824,0.000167,2]
[401987145,1768439434450,-151.76174465,0.00016712,2]
[401987146,1768439434460,-500.0,0.00016744,2]
[401987147,1768439434469,-447.0,0.00016744,2]
[401987148,1768439434479,-500.0,0.00016799,2]
[401987149,1768439434489,-500.0,0.00016799,2]
[401987150,1768439434498,-500.0,0.00016799,2]
[401987151,1768439434507,-500.0,0.00016799,2]
[401987152,1768439434517,-512.38385976,0.00016799,2]
[401987153,1768439434527,-500.0,0.00016799,2]
[401987154,1768439434536,-500.0,0.00016799,2]
[401987155,1768439434546,-500.0,0.00016799,2]
[401987156,1768439434556,-500.0,0.00016799,2]
[401987157,1768439434566,-561.82094959,0.00016799,2]
[401987158,1768439434576,-500.0,0.00016799,2]
[401987159,1768439434586,-500.0,0.00016799,2]
[401987160,1768439434595,-500.0,0.00016799,2]
[401987161,1768439434605,-500.0,0.00016799,2]
[401987162,1768439434614,-500.0,0.00016799,2]
[401987163,1768439434623,-500.0,0.00016799,2]
[401987164,1768439434633,-500.0,0.00016799,2]
[401987165,1768439434643,-500.0,0.00016799,2]
[401987166,1768439434653,-500.0,0.00016799,2]
[401987167,1768439434663,-500.0,0.00016799,2]
[401987168,1768439434672,-500.0,0.00016799,2]
[401987169,1768439434682,-500.0,0.00016799,2]
[401987170,1768439434691,-500.0,0.00016799,2]
[401987171,1768439434701,-500.0,0.00016799,2]
[401987172,1768439434710,-500.0,0.00016799,2]
[401987173,1768439434720,-500.0,0.00016799,2]
[401987174,1768439434729,-500.0,0.00016799,2]
[401987175,1768439434739,-500.0,0.00016799,2]
[401987176,1768439434749,-447.0,0.00016799,2]
[401987177,1768439434759,-1500.0,0.000168,6]
[401987178,1768439434768,-500.0,0.00016854,2]
[401987179,1768439434778,-447.0,0.00016854,2]
[401987180,1768439434787,-842.93,0.00016854,2]
[401987181,1768439434797,-674.36423897,0.00016864,2]
[401987182,1768439434807,-3000.0,0.000169,6]
[401987183,1768439434817,-500.0,0.00016909,2]
[401987184,1768439434827,-447.0,0.00016909,2]
[401987185,1768439434846,-500.0,0.00016964,2]
[401987186,1768439434858,-447.0,0.00016964,2]
[401987187,1768439434868,-279.94,0.00016976,2]
[401987188,1768439434879,-362.57342661,0.00017018,2]
[401987189,1768439434889,-447.0,0.00017018,2]
[401987190,1768439434899,-250.0,0.0001706,2]
[401987191,1768439434909,-195.0,0.0001706,2]
[401987192,1768439434919,-193.0,0.0001706,2]
[401987193,1768439434929,-300.0,0.0001706,2]
[401987194,1768439434940,-300.0,0.0001706,2]
[401987195,1768439434950,-300.0,0.0001706,2]
[401987196,1768439434960,-447.0,0.00017073,2]
[401987197,1768439434970,-453.74289722,0.00017121,2]
[401987198,1768439434980,-1000.0,0.00017121,2]
[401987199,1768439434990,-487.57806594,0.00017121,2]
[401987200,1768439434999,-1000.0,0.00017121,2]
[401987201,1768439435010,-1000.0,0.00017121,2]
[401987202,1768439435019,-201.20066245,0.00017121,2]
[401987203,1768439435030,-1000.0,0.00017121,2]
[401987204,1768439435041,-1000.0,0.00017121,2]
[401987205,1768439435050,-1000.0,0.00017121,2]
[401987206,1768439435060,-1092.17665414,0.00017121,2]
[401987207,1768439435071,-228.45369785,0.00017121,2]
[401987208,1768439435081,-1000.0,0.00017121,2]
[401987209,1768439435090,-501.54454633,0.00017121,2]
[401987210,1768439435099,-500.57959935,0.00017121,2]
[401987211,1768439435109,-600.70341733,0.00017121,2]
[401987212,1768439435119,-1000.0,0.00017121,2]
[401987213,1768439435129,-510.77976475,0.00017121,2]
[401987214,1768439435140,-1000.27610119,0.00017121,2]
[401987215,1768439435150,-1000.0,0.00017121,2]
[401987216,1768439435160,-1000.0,0.00017121,2]
[401987217,1768439435170,-1000.0,0.00017121,2]
[401987218,1768439435181,-1000.0,0.00017121,2]
[401987219,1768439435191,-447.0,0.00017128,2]
[401987220,1768439435201,-842.93,0.00017128,2]
[401987221,1768439435211,-500.0,0.00017128,2]
[401987222,1768439435221,-533.8,0.00017155,2]
[401987223,1768439435231,-447.0,0.00017183,2]
[401987224,1768439435242,-447.0,0.00017238,2]
[401987225,1768439435252,-4742.92077169,0.00017275,2]
[401987226,1768439435262,-447.0,0.00017292,2]
[401987227,1768439435273,-545.92510405,0.00017337,2]
[401987228,1768439435284,-447.0,0.00017347,2]
[401987229,1768439435294,-447.0,0.00017402,2]
[401987230,1768439435304,-842.93,0.00017402,2]
[401987231,1768439435315,-867.0,0.00017413,2]
[401987232,1768439435325,-447.0,0.00017457,2]
[401987233,1768439435334,-447.0,0.00017511,2]
[401987234,1768439435343,-150.0,0.0001754,2]
[401987235,1768439435355,-150.0,0.0001754,2]
[401987236,1768439435366,-150.0,0.0001754,2]
[401987237,1768439435377,-229.92025666,0.0001754,2]
[401987238,1768439435387,-150.0,0.0001754,2]
[401987239,1768439435396,-150.0,0.0001754,2]
[401987240,1768439435406,-500.0,0.0001754,2]
[401987241,1768439435417,-150.0,0.0001754,2]